Cogmind - Beta 17 *** ADVENTURER MODE // 2026.07.02 @ 22:06:35 Player: Gder Result: Destroyed by S-27 Virus with Autogun Performance ------------- Evolutions (5) 2500 Regions Visited (20) 4000 Robots Destroyed (267) 1335 Value Destroyed (9835) 9835 Prototype IDs (49) 980 Alien Tech Used (0) 0 Bonus (5388) 5388 TOTAL SCORE: 24038 Bonus ------- High Alert Combat Kills 176 Follower Combat Kills 299 Aligned with FarCom 300 Met Data Miner 300 Met Imprinter 300 Met Warlord at Base 500 MAIN.C Attacked Warlord 500 Warlord Defense Kills 3230 Friendly Fire -217 Cogmind --------- Core Integrity 0/1000 Matter 294/300 Energy 99/100 System Corruption 8% Temperature Cool (9) Movement Core (50) Location -4/Proximity Caves Parts ------- > --- POWER (2) -------- (None) > --- PROPULSION (4) --- (None) > --- UTILITY (8) ------ (None) > --- WEAPON (3) ------- (None) > --- INVENTORY (5) ---- Advanced Heat Sink Matter Compressor (250) Heavy Flak Cannon Heavy Flak Cannon Mini Smartbomb Launcher Peak State ------------ > --- POWER ------------ Neutrino Core Light Neutrino Core > --- PROPULSION ------- Enhanced Flexi-carbon Leg Enhanced Flexi-carbon Leg Enhanced Flexi-carbon Leg Potential Leg > --- UTILITY ---------- Advanced Heat Sink Large Storage Unit Enhanced Optical Array Improved Terrain Scanner Advanced Targeting Computer Improved Medium Armor Plating Advanced Hacking Suite Long-range Tractor Beam > --- WEAPON ----------- Advanced Assault Cannon Mass Driver Enhanced Gauss Cannon > --- INVENTORY -------- Light Angular Momentum Engine Flexi-carbon Leg Enhanced Flexi-carbon Leg Advanced Heat Sink Matter Compressor Hacking Drone Bay Enhanced Gauss Cannon Mini Smartbomb Launcher Molecular Deconstructor Ionic Axe Ionic Axe [Rating: 101] Favorites ----------- Power Neutrino Core Engine Cooled Ion Engine Power Core Neutrino Core Reactor Antimatter Reactor Propulsion Potential Leg Treads Light Treads Leg Potential Leg Wheel Armored Wheel Utility Advanced Heat Sink Device Advanced Heat Sink Storage Large Storage Unit Processor Core Analyzer Hackware Advanced Hacking Suite Protection Improved Medium Armor Plating Weapon Gauss Cannon Energy Gun Medium Laser Ballistic Gun Improved Assault Rifle Ballistic Cannon Gauss Cannon Launcher Heavy Missile Launcher Special Weapon Molecular Deconstructor Impact Weapon Heavy Flail Slashing Weapon Makeshift Sword Build | -11 -10 -10 -9 -9 -9 -8 -8 -7 -7 -7 -6 -6 -6 -6 -5 -5 -5 -5 -5 -4 ------- Run | Yrd Mat Min Mat Min Exi Min Mat Fac Low Dat Pro Fac Low Zio Pro Fac Upp Upp War Pro Slots Evolved 10 | . . . 2 . . . 2 2 . . . 2 . . . 2 . . . . Power 1 | . . . . . . . . . . . . . . . . 1 . . . . Propulsion 2 | . . . . . . . 1 . . . . 1 . . . . . . . . Utility 6 | . . . 1 . . . 1 2 . . . 1 . . . 1 . . . . Weapon 1 | . . . 1 . . . . . . . . . . . . . . . . . Parts Attached 151 | 8 2 3 11 2 . . 8 8 2 1 7 16 1 6 7 43 4 4 18 . Power 20 | 1 1 . 2 1 . . . . . . 2 . . 2 1 5 . 1 4 . Engine 8 | 1 1 . 2 . . . . . . . 1 . . . . 2 . 1 . . Core 10 | . . . . 1 . . . . . . 1 . . 2 1 3 . . 2 . Reactor 2 | . . . . . . . . . . . . . . . . . . . 2 . Propulsion 29 | 2 . 2 . 1 . . 3 . . . . 6 . . 2 8 . . 5 . Treads 2 | 1 . 1 . . . . . . . . . . . . . . . . . . Leg 21 | . . . . . . . . . . . . 6 . . 2 8 . . 5 . Wheel 6 | 1 . 1 . 1 . . 3 . . . . . . . . . . . . . Hover . | . . . . . . . . . . . . . . . . . . . . . Flight . | . . . . . . . . . . . . . . . . . . . . . Utility 58 | 3 . 1 4 . . . 4 3 2 . 3 5 1 2 2 18 4 1 5 . Device 24 | 2 . 1 2 . . . . . . . 1 1 . 1 1 7 3 1 4 . Storage 7 | 1 . . 1 . . . 1 . . . . 1 . . . 3 . . . . Processor 10 | . . . . . . . . 1 1 . 1 1 1 . . 5 . . . . Hackware 3 | . . . . . . . 1 . . . 1 . . . . 1 . . . . Protection 14 | . . . 1 . . . 2 2 1 . . 2 . 1 1 2 1 . 1 . Artifact . | . . . . . . . . . . . . . . . . . . . . . Weapon 44 | 2 1 . 5 . . . 1 5 . 1 2 5 . 2 2 12 . 2 4 . Energy Gun 3 | 1 . . 1 . . . . . . . . . . . . 1 . . . . Energy Cannon . | . . . . . . . . . . . . . . . . . . . . . Ballistic Gun 13 | 1 1 . 3 . . . . 4 . 1 . 1 . . . 2 . . . . Ballistic Cannon 14 | . . . . . . . . . . . 2 2 . . . 4 . 2 4 . Launcher 4 | . . . . . . . 1 . . . . 1 . . . 2 . . . . Special Weapon 4 | . . . 1 . . . . . . . . . . 1 2 . . . . . Impact Weapon 1 | . . . . . . . . 1 . . . . . . . . . . . . Slashing Weapon 5 | . . . . . . . . . . . . 1 . 1 . 3 . . . . Piercing Weapon . | . . . . . . . . . . . . . . . . . . . . . Special Melee Weapon . | . . . . . . . . . . . . . . . . . . . . . Unidentified Prototypes 11 | . . . 2 . . . 1 1 . . . . . 1 1 5 . . . . Parts Lost 59 | . 1 . . . . . . 1 2 . 8 11 1 . 3 5 2 3 22 . Power 8 | . . . . . . . . . . . 1 1 . . 1 1 . 1 3 . Propulsion 14 | . . . . . . . . . . . 1 2 . . 1 3 . . 7 . Utility 19 | . . . . . . . . 1 2 . 3 4 1 . 1 . 2 . 5 . Weapon 18 | . 1 . . . . . . . . . 3 4 . . . 1 . 2 7 . Highest Loss Streak 12 | . 1 . . . . . . 1 2 . 5 5 1 . 2 2 1 2 12 . To Critical Strikes 1 | . . . . . . . . . 1 . . . . . . . . . . . Average Backups 9 | 3 5 7 8 9 9 9 9 13 11 14 8 8 5 4 4 10 13 11 12 5 Power . | . . . . . . . . . . . . 1 3 1 . . 1 . . . Propulsion 1 | 3 4 4 3 3 3 3 3 3 3 3 3 2 . . . 1 2 2 2 . Utility 3 | . . 2 2 3 3 3 4 6 4 4 1 2 1 1 1 3 3 3 3 2 Weapon 3 | . . 1 2 3 3 3 2 3 4 7 2 2 1 1 2 5 6 5 6 3 Tool/Special . | . . . . . . . . . . . . . . . . . . . . . Unused Backups 28 | . 1 2 2 1 2 . 3 5 . . . . . 3 1 1 1 . 3 3 Power 1 | . . . . . . . . . . . . . . . 1 . . . . . Propulsion 7 | . . 1 1 . 2 . . . . . . . . . . . . . 3 . Utility 9 | . 1 1 1 . . . 1 1 . . . . . 2 . . 1 . . 1 Weapon 11 | . . . . 1 . . 2 4 . . . . . 1 . 1 . . . 2 Tool/Special . | . . . . . . . . . . . . . . . . . . . . . Average Slot Usage (%) 95 | . 99 100 97 100 100 100 95 93 99 82 88 88 91 98 96 95 99 100 96 . Engine 3 | . 14 14 11 11 11 11 9 7 7 7 . . . . . 1 . . 2 . Core 4 | . . . . . . . . . . . 2 5 . 5 5 8 11 10 3 . Treads 1 | . 14 14 11 11 11 11 . . . . . . . . . . . . . . Leg 14 | . . . . . . . . . . . . 13 26 26 25 22 23 23 22 . Wheel 6 | . 14 14 11 11 11 11 25 22 23 23 17 5 . . . . . . . . Device 10 | . 14 14 11 11 11 11 9 6 . . 6 5 6 12 12 10 12 17 18 . Storage 7 | . 14 14 11 11 11 11 9 7 7 7 7 8 6 6 6 7 5 5 4 . Processor 11 | . . . . . . . . 7 6 7 11 15 18 20 20 18 11 11 10 . Hackware 2 | . . . . . . . 4 7 . . 4 6 5 . . 1 5 5 4 . Protection 7 | . . . 8 11 11 11 10 9 29 30 12 6 6 6 6 5 8 5 3 . Ballistic Gun 9 | . 17 28 27 33 33 33 27 19 22 5 11 4 2 . . 1 . . . . Ballistic Cannon 8 | . . . . . . . . . . . 10 12 13 13 6 8 16 16 16 . Slashing Weapon 1 | . . . . . . . . . . . . . 3 5 6 3 . . . . Peak Build Rating 101 | 7 7 9 21 20 22 22 31 53 46 46 46 63 60 68 80 98 99 101 99 2 Average Rating 61 | 5 6 7 16 19 21 22 27 43 45 35 39 52 59 64 71 87 97 99 92 2 On Entrance 41 | . 7 7 9 20 20 22 22 31 52 46 46 41 57 57 68 80 97 99 98 2 Avg Prop Armor Cover (%) 6 | 15 13 13 8 7 7 7 7 . 2 2 3 2 2 2 . . . . 4 . Naked Turns 87 | . . . . . . . . . . . . . . . . . . . 25 62 Heaviest Build 123 | 14 14 13 33 33 33 33 43 57 63 63 63 61 32 39 40 123 82 77 85 . Greatest Support 114 | 10 10 10 10 10 10 10 36 36 24 24 24 95 73 85 92 114 114 114 114 3 Greatest Overweight (x) 4 | 1 1 1 3 3 3 3 3 2 2 2 3 4 . . . 1 . . 1 . Average Overweight (x) . | . 1 1 2 2 3 3 . 1 2 2 2 . . . . . . . . . Largest Inventory Capacity 25 | 8 8 8 10 10 10 10 15 15 15 15 15 15 5 5 5 25 15 15 15 5 Average Capacity 12 | 7 8 8 9 10 10 10 10 15 15 15 15 14 5 5 5 14 15 15 14 5 Most Carried 15 | 5 8 8 10 10 10 10 15 15 15 15 12 14 5 5 5 15 15 15 15 5 Average Carried 10 | 3 5 7 9 10 10 10 10 14 11 14 8 8 5 4 4 11 14 12 13 5 Final Capacity 15 | 8 8 8 10 10 10 10 15 15 15 15 15 5 5 5 5 15 15 15 5 5 Final Carried 15 | 4 8 8 10 10 10 10 15 15 12 12 8 5 5 5 5 15 15 12 5 5 Class Distribution -------------------- 25% | Mutant 17% | Hacker-Skirmisher 12% | Tank 9% | Hacker-Gunner 7% | Hacker-Tank 6% | Hacker-Mutant 6% | Derelict-Mutant 4% | Scavenger-Skirmisher 3% | Skirmisher Dominant Class ---------------- Mutant | -10/Materials Mutant | -10/Mines Tank | -9/Materials Tank | -9/Mines Tank | -9/Exiles Skirmisher | -8/Mines Hacker-Skirmisher | -8/Materials Hacker-Mutant | -7/Factory Tank | -7/Lower Caves Mutant | -7/Data Miner Hacker-Gunner | -6/Proximity Caves Hacker-Gunner | -6/Factory Hacker-Mutant | -6/Lower Caves Derelict-Mutant | -6/Zion Mutant | -5/Proximity Caves Mutant | -5/Factory Hacker-Tank | -5/Upper Caves Hacker-Skirmisher | -5/Upper Caves Scavenger-Skirmisher | -5/Warlord Mutant | -4/Proximity Caves Resources | -11 -10 -10 -9 -9 -9 -8 -8 -7 -7 -7 -6 -6 -6 -6 -5 -5 -5 -5 -5 -4 ----------- Run | Yrd Mat Min Mat Min Exi Min Mat Fac Low Dat Pro Fac Low Zio Pro Fac Upp Upp War Pro Matter Collected 10648 | 293 344 88 306 165 . . 649 303 316 . 423 177 38 281 409 2956 1263 560 2074 3 Remotely 2668 | . . . . . . . . . . . . . . . . 829 . 433 1406 . Salvage Created 9872 | 160 325 12 583 249 . . 1232 394 281 . 442 357 . . 458 3298 669 521 891 . Parts 480 | 13 21 3 34 20 . . 64 17 18 . 27 20 . . 12 169 12 10 40 . Haulers Intercepted 12 | . . . 4 . . . 4 . . . . . . . . 4 . . . . Recyclers Shooed 13 | . . . . . . . 3 1 . . . 2 . . . 7 . . . . Parts Field Recycled . | . . . . . . . . . . . . . . . . . . . . . Retrieved Matter . | . . . . . . . . . . . . . . . . . . . . . Parts Self-Destructed 73 | . . . . . . . . . 19 . 25 . . . 12 . 10 7 . . Prevented 5 | . . . . . . . . . 3 . . . . . . . . 2 . . Parts Restored . | . . . . . . . . . . . . . . . . . . . . . Kills | -11 -10 -10 -9 -9 -9 -8 -8 -7 -7 -7 -6 -6 -6 -6 -5 -5 -5 -5 -5 -4 ------- Run | Yrd Mat Min Mat Min Exi Min Mat Fac Low Dat Pro Fac Low Zio Pro Fac Upp Upp War Pro Combat Hostiles Destroyed 204 | . 9 . 10 9 . . 16 4 8 . 11 17 . . 12 50 15 15 28 . Melee 8 | . . . . . . . . . . . . . . . 4 4 . . . . Guns 63 | . 9 . 10 9 . . 16 4 8 . 5 . . . . 2 . . . . Cannons 95 | . . . . . . . . . . . 6 14 . . 2 27 13 6 27 . AOE 31 | . . . . . . . . . . . . 3 . . 5 12 2 9 . . Classes Destroyed 22 | 2 3 . 4 1 . . 2 1 . . . 1 . . 2 1 . 1 4 . Worker 8 | . 1 . . . . . 1 . . . . 1 . . . 5 . . . . Builder 14 | . . . 1 . . . 1 . . . . 1 . . . 11 . . . . Tunneler 7 | 4 . 1 . 1 . . . . . . . . . . . 1 . . . . Hauler 12 | . . . 4 . . . 4 . . . . . . . . 4 . . . . Recycler 17 | 1 1 . . . . . 2 2 . . . 1 . . . 10 . . . . Mechanic 1 | . . . . . . . . . . . . . . . . 1 . . . . Operator 1 | . . . . . . . 1 . . . . . . . . . . . . . Watcher 9 | . . . 1 . . . 4 1 . . . 1 . . . 2 . . . . Swarmer 53 | . 6 . 3 6 . . 4 . 4 . 3 4 . . . 18 1 . 4 . Saboteur 3 | . . . . . . . . . . . . . . . . . . . 3 . Grunt 66 | . 3 . 4 2 . . 9 . 3 . 4 . . . 8 15 3 7 8 . Brawler 14 | . . . . 1 . . 1 . 1 . . . . . 1 3 3 3 1 . Duelist 6 | . . . . . . . . . . . . . . . 1 . 3 2 . . Protector 3 | . . . . . . . . . . . . . . . . . . 1 2 . Sentry 17 | . . . 3 . . . 3 1 . . 1 1 . . 1 4 2 1 . . Specialist 2 | . . . . . . . . . . . . . . . . . . . 2 . Hunter 11 | . . . . . . . 1 1 . . 2 2 . . . 5 . . . . Programmer 14 | . . . . . . . . 2 . . 1 1 . . . 5 . . 5 . Behemoth 2 | . . . . . . . . . . . . . . . 1 . . 1 . . Striker 1 | . . . . . . . . . . . . . . . . . . . 1 . Executioner 2 | . . . . . . . . . . . . . . . . . . . 2 . Packrat 2 | . . . . . . . . . . . . . . . . . 2 . . . Assembled 9 | . . . . . . . . . . . . 9 . . . . . . . . Thug 2 | . . . . . . . . . . . . . . . . . 1 . 1 . Butcher 2 | . . . . . . . . . . . . . . . . . 2 . . . Best Kill Streak 14 | 5 7 1 5 4 . . 10 2 4 . 4 10 . . 7 14 8 9 7 . Combat Bots Only 10 | . 6 . 5 4 . . 6 1 4 . 4 9 . . 7 10 8 9 7 . Max Kills in Single Turn 4 | 1 1 1 2 2 . . 2 1 2 . 2 4 . . 4 3 2 3 2 . Gunslinging 1 | . . . 1 1 . . 1 . 1 . . . . . . . . . . . Exploded 4 | . . . . . . . . . . . . 3 . . 4 3 2 3 . . Melee 1 | . . . . . . . . . . . . . . . 1 1 . . . . Uniques/NPCs Destroyed . | . . . . . . . . . . . . . . . . . . . . . Combat | -11 -10 -10 -9 -9 -9 -8 -8 -7 -7 -7 -6 -6 -6 -6 -5 -5 -5 -5 -5 -4 -------- Run | Yrd Mat Min Mat Min Exi Min Mat Fac Low Dat Pro Fac Low Zio Pro Fac Upp Upp War Pro Hostile Shots Fired 1611 | . 59 2 23 18 . . 59 37 59 . 113 245 21 . 111 222 31 53 538 20 Missed 644 | . 12 2 10 9 . . 25 12 16 . 35 88 11 . 32 77 7 20 281 7 Hits 967 | . 47 . 13 9 . . 34 25 43 . 78 157 10 . 79 145 24 33 257 13 Melee 27 | . . . . 2 . . . . 4 . . 13 . . 1 1 3 . 3 . Projectile 940 | . 47 . 13 7 . . 34 25 39 . 78 144 10 . 78 144 21 33 254 13 Critical Strikes 32 | . . . 1 . . . . 2 2 . 3 3 . . 4 6 1 4 6 . Part Disruptions 2 | . . . . . . . . . . . . . . . . . . . 2 . Damage Taken 12743 | . 400 . 159 83 . . 366 845 532 . 972 1919 131 . 982 2171 461 562 2952 208 Core 1667 | . 74 . 8 24 . . 71 121 12 . 79 147 . . 130 118 34 17 624 208 Absorbed by Shields . | . . . . . . . . . . . . . . . . . . . . . Ignored by Resistances 3535 | . 128 . 47 25 . . 109 130 149 . 278 554 37 . 274 602 126 154 862 60 Regen/Repaired (Parts) 560 | . . . . . . . . 319 . . . 161 . . . . . . 80 . Core Remaining (%) 80 | 100 . 70 . . . 92 87 . . . 69 . . . 67 . . . . . Volleys Fired 498 | 13 24 4 35 15 . 1 60 16 12 . 23 32 . . 15 117 28 21 82 . Largest 3 | 2 2 2 3 3 . 3 3 3 3 . 3 3 . . 1 3 3 3 3 . Hottest 140 | 70 70 40 140 69 . 69 69 84 84 . 113 120 . . 44 127 127 134 139 . Shots Fired 1307 | 26 46 8 92 45 . 3 180 49 35 . 68 91 1 . 15 284 79 49 236 . Gun 566 | 26 46 8 90 45 . 3 180 49 35 . 45 15 . . . 24 . . . . Cannon 687 | . . . . . . . . . . . 23 75 1 . 1 234 77 42 234 . Launcher 22 | . . . . . . . . . . . . 1 . . . 12 2 7 . . Special 32 | . . . 2 . . . . . . . . . . . 14 14 . . 2 . Kinetic 1215 | 13 29 8 82 45 . 3 180 49 35 . 68 90 1 . 1 258 77 42 234 . Thermal 40 | 13 17 . 10 . . . . . . . . . . . . . . . . . Explosive 30 | . . . . . . . . . . . . 1 . . 8 12 2 7 . . Electromagnetic . | . . . . . . . . . . . . . . . . . . . . . Robot Hit Streak 39 | 11 13 3 35 14 . 17 17 39 29 . 31 11 . . 19 26 22 20 21 . Robot Miss Streak 4 | 1 2 1 1 1 . . 2 2 1 . 2 4 . . 1 3 1 2 4 . Penetration Max 1 | . . . . . . . . . . . . . . . . 1 1 1 1 . Secondary Targets 17 | . 5 . 1 2 . . 4 . 3 . 2 . . . . . . . . . Max Gunslinging Chain 1 | . 1 . 1 1 . . 1 . 1 . 1 . . . . . . . . . Shots Hit Robots 923 | 21 36 6 78 32 . 3 136 34 28 . 47 47 . . 24 190 59 33 149 . Core Hits 501 | 8 17 2 28 13 . . 64 13 13 . 25 33 . . 24 123 39 39 60 . Critical Kills 7 | . . . 1 . . . . . . . . . . . . . . . 6 . Critical Parts Destroyed 5 | . . . . . . . 1 . . . . . . . . . . . 4 . Critical Strikes 84 | . 1 . 1 . . . 1 . 1 . 2 3 . . 4 31 14 2 24 . Burn 1 | . 1 . . . . . . . . . . . . . . . . . . . Destroy 14 | . . . 1 . . . 1 . 1 . . . . . . . . . 11 . Blast 57 | . . . . . . . . . . . 2 3 . . . 23 14 2 13 . Sever 12 | . . . . . . . . . . . . . . . 4 8 . . . . Melee Attacks 154 | . . . . . . . . 15 . . . 6 31 . 17 85 . . . . Impact 18 | . . . . . . . . 15 . . . 3 . . . . . . . . Slashing 136 | . . . . . . . . . . . . 3 31 . 17 85 . . . . Piercing . | . . . . . . . . . . . . . . . . . . . . . Sneak Attacks 15 | . . . . . . . . . . . . . . . 1 14 . . . . Combat Hostiles . | . . . . . . . . . . . . . . . . . . . . . Follow-up Attacks . | . . . . . . . . . . . . . . . . . . . . . Damage Inflicted 28200 | 241 353 49 925 481 . 47 2138 745 548 . 1054 1861 . . 2019 7877 2351 2423 5088 . Guns 6593 | 241 353 49 925 481 . 47 2138 711 548 . 628 220 . . . 252 . . . . Cannons 13648 | . . . . . . . . . . . 426 1081 . . 29 4212 1916 910 5074 . Explosions 5132 | . . . . . . . . . . . . 440 . . 1290 1454 435 1513 . . Melee 2423 | . . . . . . . . . . . . . . . 464 1959 . . . . Ramming 168 | . . . . . . . . 34 . . . 120 . . . . . . 14 . Kinetic 19849 | 76 201 49 850 481 . 47 2138 711 548 . 1054 1301 . . 29 4464 1916 910 5074 . Thermal 549 | 165 152 . 75 . . . . . . . . 157 . . . . . . . . Explosive 4975 | . . . . . . . . . . . . 283 . . 1290 1454 435 1513 . . Electromagnetic . | . . . . . . . . . . . . . . . . . . . . . Impact . | . . . . . . . . . . . . . . . . . . . . . Slashing 2659 | . . . . . . . . . . . . . . . 700 1959 . . . . Piercing . | . . . . . . . . . . . . . . . . . . . . . Highest Corruption 9 | . . . . . . . 1 6 6 6 7 9 9 9 . 2 2 . 8 8 Average Corruption 4 | . . . . . . . 1 5 6 6 6 6 9 9 . 1 1 . 2 8 Corruption Purged 4 | . . . . . . . . . . . . . . . . 2 2 . . . Corruption Blocked . | . . . . . . . . . . . . . . . . . . . . . Effects 145 | . . . . . . . 8 10 13 2 19 17 18 5 . 14 21 . 15 3 Message Errors 34 | . . . . . . . . 1 1 . 3 8 5 . . 4 6 . 6 . Matter Fused 33 | . . . . . . . 1 4 6 . 6 4 3 2 . 2 2 . 2 1 Heat Flow Errors 14 | . . . . . . . 1 1 1 . 1 2 4 . . . 4 . . . Energy Discharges 15 | . . . . . . . . 2 1 . 4 . 1 1 . 2 3 . 1 . Parts Rejected 2 | . . . . . . . . . . . . . . . . 1 . . 1 . Parts Fused 1 | . . . . . . . . . . 1 . . . . . . . . . . Data Loss (minor) 20 | . . . . . . . 2 . 3 1 2 2 2 2 . 2 1 . 1 2 Data Loss (major) 6 | . . . . . . . . 1 . . 2 . 1 . . . 1 . 1 . Misfires 11 | . . . . . . . 2 1 . . . 1 1 . . 3 3 . . . Alerts 3 | . . . . . . . . . . . . . 1 . . . 1 . 1 . Weapon Failures 6 | . . . . . . . 2 . 1 . 1 . . . . . . . 2 . Overload Shots . | . . . . . . . . . . . . . . . . . . . . . Overflow Damage 591 | . . . . . . . . 9 . . . 98 . . 46 360 7 27 44 . Projectiles 204 | . . . . . . . . . . . . 31 . . . 97 5 27 44 . Explosions 134 | . . . . . . . . . . . . 67 . . 10 55 2 . . . Melee 253 | . . . . . . . . 9 . . . . . . 36 208 . . . . Knockbacks 62 | . . . . . . . . 1 . . 5 9 . . . 19 13 1 14 . Impact 1 | . . . . . . . . 1 . . . . . . . . . . . . Kinetic 57 | . . . . . . . . . . . 4 9 . . . 18 12 1 13 . Secondary 4 | . . . . . . . . . . . 1 . . . . 1 1 . 1 . Self-Inflicted Damage 59 | . . . . . . . . 17 . . . 36 . . . . . . 6 . Shots 1 | . . . . . . . . . . . . 1 . . . . . . . . Rammed 6 | . . . . . . . . 1 . . . . . . . . . . 4 1 Targets Rammed 21 | . . . . . . . . 1 . . . 15 . . . . . . 4 1 Kicked 15 | . . . . . . . . . . . . 15 . . . . . . . . Crushed . | . . . . . . . . . . . . . . . . . . . . . Highest Temperature 304 | 110 196 . 64 36 . 9 84 271 304 . 136 199 233 . . 109 140 279 226 . Average Temperature 45 | 43 78 . 22 12 . 6 23 76 113 . 28 76 111 . . 19 33 63 139 . Received Heat Transfer 2602 | . 102 . 66 12 . . 189 48 234 . 207 112 12 . 327 429 111 477 216 60 Effects 1 | . . . . . . . . . 1 . . . . . . . . . . . Short Circuit 1 | . . . . . . . . . 1 . . . . . . . . . . . Siege Activations . | . . . . . . . . . . . . . . . . . . . . . Martial Activations . | . . . . . . . . . . . . . . . . . . . . . Shielding Activations . | . . . . . . . . . . . . . . . . . . . . . Robots Disrupted . | . . . . . . . . . . . . . . . . . . . . . Combat Hostiles . | . . . . . . . . . . . . . . . . . . . . . Robots Corrupted . | . . . . . . . . . . . . . . . . . . . . . Combat Hostiles . | . . . . . . . . . . . . . . . . . . . . . Parts Fried . | . . . . . . . . . . . . . . . . . . . . . Impact Corruptions 1 | . . . . . . . . 1 . . . . . . . . . . . . Robots Melted . | . . . . . . . . . . . . . . . . . . . . . Combat Hostiles . | . . . . . . . . . . . . . . . . . . . . . Parts Melted 2 | 1 . . . . . . 1 . . . . . . . . . . . . . Heat Transferred 1274 | 481 518 . 175 . . . . . . . . 100 . . . . . . . . Parts Sabotaged . | . . . . . . . . . . . . . . . . . . . . . Parts Stolen . | . . . . . . . . . . . . . . . . . . . . . Parts Stripped . | . . . . . . . . . . . . . . . . . . . . . Power Chain Reactions . | . . . . . . . . . . . . . . . . . . . . . Alert | -11 -10 -10 -9 -9 -9 -8 -8 -7 -7 -7 -6 -6 -6 -6 -5 -5 -5 -5 -5 -4 ------- Run | Yrd Mat Min Mat Min Exi Min Mat Fac Low Dat Pro Fac Low Zio Pro Fac Upp Upp War Pro Maximum Alert Level 3 | . . . . . . . 2 . . . . 1 . . . 3 . . . . Low Security (%) 81 | 100 100 100 100 100 . 100 40 100 . . . 77 . . . 70 . . . . Level 1 12 | . . . . . . . 47 . . . . 22 . . . 16 . . . . Level 2 5 | . . . . . . . 11 . . . . . . . . 12 . . . . Level 3 . | . . . . . . . . . . . . . . . . 1 . . . . Level 4 . | . . . . . . . . . . . . . . . . . . . . . Level 5 . | . . . . . . . . . . . . . . . . . . . . . High Security . | . . . . . . . . . . . . . . . . . . . . . Max Security . | . . . . . . . . . . . . . . . . . . . . . Peak Influence 727 | 10 153 51 120 138 . . 417 73 . . . 269 . . . 727 . . . . Initial 63 | . . 33 6 13 . . . 63 . . . . . . . . . . . . Average 100 | 2 53 8 25 60 . . 237 7 . . . 120 . . . 152 . . . . Influence Increases 6090 | 25 253 56 307 263 . . 654 192 180 . 240 494 . . 260 1886 250 350 680 . Destroy 0b10 Robot/C 3960 | . 180 40 200 200 . . 440 80 160 . 220 160 . . 240 1000 240 280 520 . Destroy 0b10 Robot/NC 360 | 25 10 5 30 5 . . 65 15 . . . 20 . . . 170 . 5 10 . Destroy Leader 612 | . 30 10 50 30 . . 106 42 20 . 20 42 . . 20 212 10 20 . . Allied During Kill 18 | . . 1 1 13 . . 3 . . . . . . . . . . . . . Successful Hack 100 | . 3 . 9 . . . . 42 . . . . . . . 46 . . . . Select Force Hacks 30 | . 30 . . . . . . . . . . . . . . . . . . . Disable Machine 234 | . . . . . . . 9 . . . . 171 . . . 54 . . . . Destroy Structure 416 | . . . 2 . . . 1 13 . . . 56 . . . 344 . . . . Lose Combat Pursuer 360 | . . . 15 15 . . 30 . . . . 45 . . . 60 . 45 150 . Influence Decreases 6090 | 25 150 138 288 280 23 . 490 356 180 . 240 403 91 . 260 1285 851 180 820 30 Entered New Map 747 | . . 70 15 27 23 . . 101 . . . . 41 . . . 270 . 170 30 Time Decay 4552 | 25 140 68 185 250 . . 340 254 180 . 210 293 50 . 200 1236 561 130 430 . Lost Part 459 | . 10 . . . . . . . . . 30 110 . . 20 39 20 10 220 . Lost Ally 100 | . . . 6 3 . . . 1 . . . . . . 40 10 . 40 . . Purge Threat 232 | . . . 82 . . . 150 . . . . . . . . . . . . . Squads Dispatched 32 | . 1 . 2 . . . 3 5 . . . 6 . . 1 12 . 1 . 1 Investigation 7 | . 1 . . . . . 2 1 . . . 3 . . . . . . . . Extermination 10 | . . . . . . . . 3 . . . 2 . . . 5 . . . . Reinforcement 12 | . . . 2 . . . 1 1 . . . 1 . . . 7 . . . . Assault 3 | . . . . . . . . . . . . . . . 1 . . 1 . 1 Garrison . | . . . . . . . . . . . . . . . . . . . . . Intercept . | . . . . . . . . . . . . . . . . . . . . . Searches Triggered . | . . . . . . . . . . . . . . . . . . . . . Data Miner Redirects 1 | . . . . . . . . . . . . 1 . . . . . . . . Construction Impeded 4 | . . . 1 . . . . . . . . 1 . . . 2 . . . . Haulers Reinforced 3 | . . . . . . . . . . . . . . . . 3 . . . . Active Scanning Responses . | . . . . . . . . . . . . . . . . . . . . . Cargo Convoy Interrupts . | . . . . . . . . . . . . . . . . . . . . . Stealth | -11 -10 -10 -9 -9 -9 -8 -8 -7 -7 -7 -6 -6 -6 -6 -5 -5 -5 -5 -5 -4 --------- Run | Yrd Mat Min Mat Min Exi Min Mat Fac Low Dat Pro Fac Low Zio Pro Fac Upp Upp War Pro Distress Signals 9 | . . . . . . . 4 1 . . . 1 . . . 2 . . 1 . Communications Jammed . | . . . . . . . . . . . . . . . . . . . . . Distress Signals . | . . . . . . . . . . . . . . . . . . . . . Times Spotted 367 | . 11 2 15 11 . 4 29 14 9 . 11 27 2 . 13 58 15 18 120 8 Peak Tracking Total 33 | . 5 2 4 2 . 4 4 4 4 . 4 5 2 . 7 8 7 9 33 6 Tactical Retreats 16 | . . . 1 1 . . 1 . . . . 2 . . . 4 1 1 5 . Traps | -11 -10 -10 -9 -9 -9 -8 -8 -7 -7 -7 -6 -6 -6 -6 -5 -5 -5 -5 -5 -4 ------- Run | Yrd Mat Min Mat Min Exi Min Mat Fac Low Dat Pro Fac Low Zio Pro Fac Upp Upp War Pro Traps Triggered 12 | . 1 . 3 . . . . 2 . . . 3 . . . 3 . . . . Indirectly . | . . . . . . . . . . . . . . . . . . . . . Trap Hack Attempts . | . . . . . . . . . . . . . . . . . . . . . Triggered . | . . . . . . . . . . . . . . . . . . . . . Disarmed . | . . . . . . . . . . . . . . . . . . . . . Reprogrammed . | . . . . . . . . . . . . . . . . . . . . . Reused . | . . . . . . . . . . . . . . . . . . . . . Traps Extracted . | . . . . . . . . . . . . . . . . . . . . . Installed . | . . . . . . . . . . . . . . . . . . . . . Triggered . | . . . . . . . . . . . . . . . . . . . . . Machines | -11 -10 -10 -9 -9 -9 -8 -8 -7 -7 -7 -6 -6 -6 -6 -5 -5 -5 -5 -5 -4 ---------- Run | Yrd Mat Min Mat Min Exi Min Mat Fac Low Dat Pro Fac Low Zio Pro Fac Upp Upp War Pro Machines Disabled 30 | . . . . . . . 1 . . . . 19 . . 2 6 1 . 1 . Max in Single Turn 19 | . . . . . . . 1 . . . . 19 . . 1 1 1 . 1 . Garrison Access 2 | . . . . . . . . . . . . . . . . 2 . . . . Machines Repaired . | . . . . . . . . . . . . . . . . . . . . . Machines Dismantled . | . . . . . . . . . . . . . . . . . . . . . Machines Sabotaged . | . . . . . . . . . . . . . . . . . . . . . Overloaded Fab Kills . | . . . . . . . . . . . . . . . . . . . . . Hacking | -11 -10 -10 -9 -9 -9 -8 -8 -7 -7 -7 -6 -6 -6 -6 -5 -5 -5 -5 -5 -4 --------- Run | Yrd Mat Min Mat Min Exi Min Mat Fac Low Dat Pro Fac Low Zio Pro Fac Upp Upp War Pro Machines Accessed 41 | . 4 1 3 . 3 . 4 7 . 4 . 2 . . . 13 . . . . Terminals 22 | . 3 . 2 . . . 3 6 . . . 1 . . . 7 . . . . Fabricators 2 | . . . . . . . . . . . . . . . . 2 . . . . Repair Stations 2 | . . . . . . . . 1 . . . 1 . . . . . . . . Recycling Units 1 | . 1 . . . . . . . . . . . . . . . . . . . Scanalyzers 2 | . . . 1 . . . . . . . . . . . . 1 . . . . Garrison Access 4 | . . . . . . . 1 . . . . . . . . 3 . . . . Total Hacks 132 | . 8 1 11 . 11 . 13 23 . 28 . 6 . . . 31 . . . . Successful 96 | . 5 1 7 . 11 . 5 15 . 28 . 5 . . . 19 . . . . Failed 34 | . 3 . 3 . . . 8 8 . . . 1 . . . 11 . . . . Catastrophic 6 | . . . 1 . . . 2 2 . . . . . . . 1 . . . . Database Lockouts 2 | . . . 1 . . . . . . . . . . . . 1 . . . . Manual 27 | . 1 . 1 . 1 . 6 7 . . . . . 2 2 7 . . . . Terminals 61 | . 7 . 6 . . . 10 15 . . . 2 . . . 21 . . . . Fabricators 3 | . . . . . . . . . . . . . . . . 3 . . . . Repair Stations 12 | . . . . . . . . 8 . . . 4 . . . . . . . . Recycling Units 1 | . 1 . . . . . . . . . . . . . . . . . . . Scanalyzers 8 | . . . 5 . . . . . . . . . . . . 3 . . . . Garrison Access 7 | . . . . . . . 3 . . . . . . . . 4 . . . . Terminal Hacks 64 | . 4 1 3 . 11 . 4 3 . 28 . 1 . . . 9 . . . . Record 21 | . . . . . 10 . . . . 11 . . . . . . . . . . Part Schematic 9 | . . . . . . . . . . 8 . . . . . 1 . . . . Robot Schematic 6 | . . . . . . . . . . 6 . . . . . . . . . . Prototype ID Bank 5 | . 1 . . . . . . . . 3 . . . . . 1 . . . . Open Door 1 | . . 1 . . . . . . . . . . . . . . . . . . Level Access Points 3 | . . . . . . . 1 1 . . . 1 . . . . . . . . Branch Access Points 1 | . . . . . . . . . . . . . . . . 1 . . . . Emergency Access Points 2 | . . . . . . . . 1 . . . . . . . 1 . . . . Machine Index 1 | . . . . . . . . 1 . . . . . . . . . . . . Terminal Index 1 | . . . . . . . . . . . . . . . . 1 . . . . Scanalyzer Index 1 | . . . . . . . . . . . . . . . . 1 . . . . Alert Level 1 | . . . . . . . 1 . . . . . . . . . . . . . Unreport Threat 3 | . . . 2 . . . 1 . . . . . . . . . . . . . Locate Traps 2 | . 1 . . . . . . . . . . . . . . 1 . . . . Dispatch Records 3 | . 1 . 1 . . . . . . . . . . . . 1 . . . . Security Status 1 | . . . . . . . . . . . . . . . . 1 . . . . Hauler Manifests 2 | . 1 . . . . . 1 . . . . . . . . . . . . . Proto ID Catalog 1 | . . . . . 1 . . . . . . . . . . . . . . . Fabricator Hacks 3 | . . . . . . . . . . . . . . . . 3 . . . . Network Status 1 | . . . . . . . . . . . . . . . . 1 . . . . Build 2 | . . . . . . . . . . . . . . . . 2 . . . . Repair Station Hacks 12 | . . . . . . . . 8 . . . 4 . . . . . . . . Scan Component 6 | . . . . . . . . 4 . . . 2 . . . . . . . . Repair 6 | . . . . . . . . 4 . . . 2 . . . . . . . . Recycling Unit Hacks . | . . . . . . . . . . . . . . . . . . . . . Scanalyzer 6 | . . . 4 . . . . . . . . . . . . 2 . . . . Retrieve Study 6 | . . . 4 . . . . . . . . . . . . 2 . . . . Garrison Access Hacks 3 | . . . . . . . 1 . . . . . . . . 2 . . . . Unlock Access 1 | . . . . . . . 1 . . . . . . . . . . . . . Seal Access 2 | . . . . . . . . . . . . . . . . 2 . . . . Unauthorized Hacks 8 | . 1 . . . . . . 4 . . . . . . . 3 . . . . Terminals 7 | . . . . . . . . 4 . . . . . . . 3 . . . . Assimilate 3 | . . . . . . . . 1 . . . . . . . 2 . . . . Botnet 4 | . . . . . . . . 3 . . . . . . . 1 . . . . Fabricators . | . . . . . . . . . . . . . . . . . . . . . Repair Stations . | . . . . . . . . . . . . . . . . . . . . . Recycling Units 1 | . 1 . . . . . . . . . . . . . . . . . . . Tunnel 1 | . 1 . . . . . . . . . . . . . . . . . . . Scanalyzers . | . . . . . . . . . . . . . . . . . . . . . Garrison Access . | . . . . . . . . . . . . . . . . . . . . . Data Cores Recovered 1 | . . . . . . . 1 . . . . . . . . . . . . . Used . | . . . . . . . . . . . . . . . . . . . . . Hacking Detections 27 | . 3 . 2 . . . 4 7 . . . 2 . . . 9 . . . . Full Trace Events 3 | . . . . . . . 1 1 . . . 1 . . . . . . . . Feedback Events 1 | . . . . . . . 1 . . . . . . . . . . . . . Corruption 1 | . . . . . . . 1 . . . . . . . . . . . . . Feedback Blocked . | . . . . . . . . . . . . . . . . . . . . . Robot Schematics Acquired 9 | . . . . . . . . . . 6 . . . 3 . . . . . . Robots Built . | . . . . . . . . . . . . . . . . . . . . . Authchips . | . . . . . . . . . . . . . . . . . . . . . Time . | . . . . . . . . . . . . . . . . . . . . . Total Robot Build Rating . | . . . . . . . . . . . . . . . . . . . . . Part Schematics Acquired 22 | . . . . . . . . . . 8 . . . 13 . 1 . . . . Parts Built 2 | . . . . . . . . . . . . . . . . 2 . . . . Authchips . | . . . . . . . . . . . . . . . . . . . . . Time 223 | . . . . . . . . . . . . . . . . 223 . . . . Total Part Build Rating 12 | . . . . . . . . . . . . . . . . 12 . . . . Part Studies Acquired 6 | . . . 4 . . . . . . . . . . . . 2 . . . . Parts Repaired 6 | . . . . . . . . 4 . . . 2 . . . . . . . . Time 261 | . . . . . . . . 185 . . . 76 . . . . . . . . Parts Recycled . | . . . . . . . . . . . . . . . . . . . . . Recycled Matter . | . . . . . . . . . . . . . . . . . . . . . Retrieved Matter . | . . . . . . . . . . . . . . . . . . . . . Retrieved Components . | . . . . . . . . . . . . . . . . . . . . . Parts Scanalyzed . | . . . . . . . . . . . . . . . . . . . . . Part Schematics Acquired . | . . . . . . . . . . . . . . . . . . . . . Parts Damaged . | . . . . . . . . . . . . . . . . . . . . . Bothacking | -11 -10 -10 -9 -9 -9 -8 -8 -7 -7 -7 -6 -6 -6 -6 -5 -5 -5 -5 -5 -4 ------------ Run | Yrd Mat Min Mat Min Exi Min Mat Fac Low Dat Pro Fac Low Zio Pro Fac Upp Upp War Pro Used RIF Installer . | . . . . . . . . . . . . . . . . . . . . . Robots Hacked . | . . . . . . . . . . . . . . . . . . . . . Non-combat . | . . . . . . . . . . . . . . . . . . . . . Combat . | . . . . . . . . . . . . . . . . . . . . . Robot Hacks Applied . | . . . . . . . . . . . . . . . . . . . . . Relay Couplers Released . | . . . . . . . . . . . . . . . . . . . . . Fabnet Peak Effective % . | . . . . . . . . . . . . . . . . . . . . . Robots Rewired 5 | . . . . . . . . . . . . . . . 2 . 1 2 . . Allies Hacked 1 | . . . . . . . . . . . . . . . . 1 . . . . Hacks Repelled . | . . . . . . . . . . . . . . . . . . . . . Allies | -11 -10 -10 -9 -9 -9 -8 -8 -7 -7 -7 -6 -6 -6 -6 -5 -5 -5 -5 -5 -4 -------- Run | Yrd Mat Min Mat Min Exi Min Mat Fac Low Dat Pro Fac Low Zio Pro Fac Upp Upp War Pro Total Allies 11 | . . 2 . 3 . . . . . . . . . . 2 1 1 2 . . Largest Group 3 | . . 2 1 3 2 2 2 . . . . . . . 2 1 1 2 . . Highest-Rated Group 78 | . . 41 31 40 32 32 32 . . . . . . . 60 26 30 78 . . Highest-Rated Ally 49 | . . 31 31 16 16 16 16 . . . . . . . 30 26 30 49 . . Total Orders 11 | . . . 1 . . . . 7 . . . . . . . 3 . . . . EXPLORE 8 | . . . 1 . . . . 7 . . . . . . . . . . . . RETURN 3 | . . . . . . . . . . . . . . . . 3 . . . . Ally Attacks 76 | . . 7 6 14 . 1 25 9 . . . . . . 3 . 2 9 . . Total Damage 898 | . . 108 38 141 . . 282 . . . . . . . 70 . 58 201 . . Kills 9 | . . 2 . 1 . . 6 . . . . . . . . . . . . . Allies Corrupted 1 | . . . . . . . . . . . . . . . . . . 1 . . Allies Melted 2 | . . . . . . . . . . . . . . . 1 . . . 1 . Intel | -11 -10 -10 -9 -9 -9 -8 -8 -7 -7 -7 -6 -6 -6 -6 -5 -5 -5 -5 -5 -4 ------- Run | Yrd Mat Min Mat Min Exi Min Mat Fac Low Dat Pro Fac Low Zio Pro Fac Upp Upp War Pro Active Infowar (turns) 13075 | 42 400 447 687 515 284 153 759 734 . . . . 487 1309 771 3178 1325 597 1387 . Optics 9054 | . . . . . . . . . . . . . 487 1309 771 3178 1325 597 1387 . Terrain 4474 | . . . . . . . . . . . . . . . . 1203 1325 597 1349 . Seismic 4021 | 42 400 447 687 515 284 153 759 734 . . . . . . . . . . . . Robot Analysis Total . | . . . . . . . . . . . . . . . . . . . . . Derelict Logs Recovered 7 | . . 2 . 1 . . . . . . . . . 2 1 . 1 . . . Drone Launches 13 | . . . 1 . . . . 9 . . . . . . . 3 . . . . Drone Recoveries 3 | . . . . . . . . . . . . . . . . 3 . . . . Exploration | -11 -10 -10 -9 -9 -9 -8 -8 -7 -7 -7 -6 -6 -6 -6 -5 -5 -5 -5 -5 -4 ------------- Run | Yrd Mat Min Mat Min Exi Min Mat Fac Low Dat Pro Fac Low Zio Pro Fac Upp Upp War Pro Turns Passed 15944 | 131 400 447 698 515 284 153 759 1327 406 158 587 856 569 1309 771 3178 1325 597 1412 62 Spaces Moved 12015 | 86 304 452 507 395 240 131 522 943 301 127 380 526 489 1302 659 2119 1091 454 866 121 Core 165 | 1 . . . . . . . . . . . . . . . . . . 43 121 Treads . | . . . . . . . . . . . . . . . . . . . . . Legs 7272 | . . . . . . . . . . . . 335 489 1302 659 2119 1091 454 823 . Wheels 4578 | 85 304 452 507 395 240 131 522 943 301 127 380 191 . . . . . . . . Hover . | . . . . . . . . . . . . . . . . . . . . . Flight . | . . . . . . . . . . . . . . . . . . . . . Fastest Speed 50 | 50 95 95 85 100 115 115 90 105 120 120 120 97 100 97 90 97 112 112 50 50 Average Speed 107 | 91 95 95 105 114 115 115 97 105 120 120 130 112 100 97 96 109 112 112 122 50 Slowest Speed 190 | 95 95 95 115 115 115 115 115 120 120 120 135 150 100 100 97 180 112 112 190 50 Overloaded Moves . | . . . . . . . . . . . . . . . . . . . . . Propulsion Burnouts . | . . . . . . . . . . . . . . . . . . . . . Robots Hopped . | . . . . . . . . . . . . . . . . . . . . . Potential Cave-ins 4 | . . . . . . . . . . . . . . . . . 3 . 1 . Cave-ins Triggered 1 | . . . . . . . . 1 . . . . . . . . . . . . Exploration Rate (%) 54 | 5 61 91 53 85 62 35 61 33 35 75 56 17 29 88 62 56 98 60 64 17 Regions Visited 20 Branch Regions 14 Pre-discovered Areas 10 | . 1 2 . . 1 . . . . 1 . . . 3 1 . 1 . . . Known Exits Taken 5 | . . . . 1 . . 1 . . . 1 . . . 1 1 . . . . Unknown Exits Taken 15 | 1 1 1 1 . 1 1 . 1 1 1 . 1 1 1 . . 1 1 1 . Scrap Searched 19 | . . 1 . 2 . 1 . . 1 . 1 . 1 5 3 . 3 1 . . Spaces Dug 86 | . . . 1 . . . . 12 . . . 5 18 . . 50 . . . . Terrain Destroyed 487 | . . . 2 . . . . 12 . . 5 54 19 . 101 184 43 40 27 . Melee 81 | . . . . . . . . 12 . . . 5 18 . . 46 . . . . Projectile 124 | . . . 2 . . . . . . . 5 10 1 . 1 49 19 10 27 . AOE 282 | . . . . . . . . . . . . 39 . . 100 89 24 30 . . Terrain Rammed . | . . . . . . . . . . . . . . . . . . . . . Walls Destroyed . | . . . . . . . . . . . . . . . . . . . . . Machines Disabled . | . . . . . . . . . . . . . . . . . . . . . Actions | -11 -10 -10 -9 -9 -9 -8 -8 -7 -7 -7 -6 -6 -6 -6 -5 -5 -5 -5 -5 -4 --------- Run | Yrd Mat Min Mat Min Exi Min Mat Fac Low Dat Pro Fac Low Zio Pro Fac Upp Upp War Pro Total 13834 | 111 375 465 604 423 251 131 640 1223 319 133 417 703 521 1350 756 2624 1134 499 1033 122 Wait 628 | . 39 . 25 6 8 . 33 206 . . 4 91 . 23 35 137 . . 21 . Move 11995 | 85 303 451 506 394 239 130 521 942 300 126 379 525 488 1301 658 2118 1090 453 865 121 Hop . | . . . . . . . . . . . . . . . . . . . . . Pick Up 102 | 4 5 2 6 1 2 . 7 11 1 . 2 9 . 8 6 23 3 1 11 . Fast Attach 78 | 7 1 . 5 2 . . 6 7 . . 1 4 1 3 2 30 2 . 7 . Attach 78 | . . 1 5 . . . . 6 4 3 6 12 . 1 4 17 1 4 14 . Detach 35 | . . . 7 . . . 1 1 . 3 . . . . . 17 1 1 4 . Swap 111 | 1 1 2 4 1 . . 3 5 1 1 1 8 1 3 3 49 4 8 15 . Drop 111 | 1 2 5 10 4 2 . 9 13 1 . 1 1 . 11 5 31 4 1 10 . Fire 498 | 13 24 4 35 15 . 1 60 16 12 . 23 32 . . 15 117 28 21 82 . Melee 154 | . . . . . . . . 15 . . . 6 31 . 17 85 . . . . Ram 6 | . . . . . . . . 1 . . . . . . . . . . 4 1 Kick 15 | . . . . . . . . . . . . 15 . . . . . . . . Crush . | . . . . . . . . . . . . . . . . . . . . . Escape Stasis . | . . . . . . . . . . . . . . . . . . . . . Rewire 23 | . . . 1 . . . . . . . . . . . 11 . 1 10 . . Trap . | . . . . . . . . . . . . . . . . . . . . . Miscellaneous . | . . . . . . . . . . . . . . . . . . . . . Route ------- -11/Scrapyard -10/Materials (discovered 2 exits: *Mat / *Min) -10/Mines (discovered 2 exits: *Mat x2) -9/Materials (discovered 2 exits: *Mat / [*Min]) -9/Mines (discovered 3 exits: *Mat x2 / *Exi) -9/Exiles -8/Mines (discovered 2 exits: *Mat x2) -8/Materials (discovered 5 exits: *Fac x3 / [*Sto] / Gar) -7/Factory (discovered 6 exits: *Fac x4 / [*Low x2]) -7/Lower Caves -7/Data Miner -6/Proximity Caves -6/Factory (discovered 5 exits: Fac x4 / [*Low]) -6/Lower Caves -6/Zion (discovered 2 exits: Dee / *Pro) -5/Proximity Caves -5/Factory (discovered 5 exits: *Fac x3 / *Upp x2) -5/Upper Caves -5/Upper Caves -5/Warlord -4/Proximity Caves History --------- Turn | Location | Event 10 | -11/Scrapyard | Discovered new exit (range 15) 132 | -11/Scrapyard | Entered Materials 315 | -10/Materials | Build established: Mutant 325 | -10/Materials | Discovered new exit (range 16) 483 | -10/Materials | Discovered new exit (range 8) 532 | -10/Materials | Entered Mines 539 | -10/Mines | Learned location of Zion (-6) 559 | -10/Mines | Assembled infested the area 781 | -10/Mines | Learned location of Storage (-8) 856 | -10/Mines | Discovered new exit (range 11) 947 | -10/Mines | Discovered new exit (range 16) 966 | -10/Mines | Found the Drone Emporium 971 | -10/Mines | Found Prototype Device 979 | -10/Mines | Entered Materials 979 | -9/Materials | Accompanied by 1 ally 979 | -9/Materials | Evolved 2 slots: Utility x1, Weapon x1 981 | -9/Materials | Identified Bomb Drone Bay 984 | -9/Materials | Led the pair of lost Derelicts to an unsafe place 1053 | -9/Materials | Central database locked down 1399 | -9/Materials | Discovered new exit (range 15) 1537 | -9/Materials | Build established: Tank 1663 | -9/Materials | Discovered new exit (range 6) 1677 | -9/Materials | Entered Mines 1682 | -9/Mines | Assisted by bots powering up and referring to "LRC-V3" 1722 | -9/Mines | Found a hidden stash of uninstalled traps 1818 | -9/Mines | Discovered new exit (range 16) 1977 | -9/Mines | Discovered new exit (range 6) 1998 | -9/Mines | Identified exit to Exiles 2039 | -9/Mines | Received a Rocket Launcher from a helpful Derelict 2107 | -9/Mines | A weapon hastily lodged in a ceiling crevice suddenly fell to the ground 2181 | -9/Mines | Deemed a non-threat by the Exiles lab entrance 2192 | -9/Mines | Entered Exiles 2192 | -9/Exiles | Accompanied by 2 allies 2221 | -9/Exiles | Met 8R-AWN 2238 | -9/Exiles | Met EX-HEX 2278 | -9/Exiles | Met EX-BIN 2297 | -9/Exiles | Aligned with FarCom system 2298 | -9/Exiles | Given EX-Vault access code 2326 | -9/Exiles | Opened EX-Vault 2333 | -9/Exiles | Found Potential Leg 2334 | -9/Exiles | Found Potential Leg 2357 | -9/Exiles | Warned to stay clear of 0b10 Research branches 2374 | -9/Exiles | Exiles lab attacked by MAIN.C 2459 | -9/Exiles | Discovered new exit (range 10) 2476 | -9/Exiles | Left Exiles lab with Potential Leg 2476 | -9/Exiles | Entered Mines 2476 | -8/Mines | Accompanied by 2 allies 2589 | -8/Mines | Discovered new exit (range 6) 2615 | -8/Mines | Discovered new exit (range 5) 2629 | -8/Mines | Entered Materials 2629 | -8/Materials | Accompanied by 2 allies 2629 | -8/Materials | Evolved 2 slots: Propulsion x1, Utility x1 2642 | -8/Materials | Identified exit to Garrison 2787 | -8/Materials | Build established: Skirmisher 2801 | -8/Materials | Discovered new exit (range 16) 2929 | -8/Materials | Discovered new exit (range 15) 3213 | -8/Materials | Identified exit to Factory 3355 | -8/Materials | Build established: Hacker-Skirmisher 3388 | -8/Materials | Entered Factory 3388 | -7/Factory | Evolved 2 slots: Utility x2 3764 | -7/Factory | Repaired Imp. Assault Rifle 3797 | -7/Factory | Repaired Arm. Wheel 3817 | -7/Factory | Lost 3 allies 3817 | -7/Factory | Discovered new exit (range 82) 3853 | -7/Factory | Repaired Imp. Assault Rifle 3906 | -7/Factory | Repaired Imp. Assault Rifle 4092 | -7/Factory | Discovered new exit (range 6) 4302 | -7/Factory | Build established: Hacker-Tank 4362 | -7/Factory | Crushed by falling debris 4402 | -7/Factory | Discovered new exit (range 8) 4468 | -7/Factory | Lost 3 allies 4598 | -7/Factory | Identified exit to Factory 4715 | -7/Factory | Entered Lower Caves 4826 | -7/Lower Caves | Encountered a Warlord checkpoint 4887 | -7/Lower Caves | A Derelict revealed a hidden shortcut to meet someone special 5020 | -7/Lower Caves | Build established: Tank 5051 | -7/Lower Caves | Spotted B-75 Beast 5121 | -7/Lower Caves | Entered Data Miner 5121 | -7/Data Miner | Discovered new exit (range 7) 5144 | -7/Data Miner | Met Data Miner 5207 | -7/Data Miner | Learned location of Section 7 (-2) 5207 | -7/Data Miner | Acquired the access code to Warlord's prototype stash 5227 | -7/Data Miner | Received God Mode back door access code from Data Miner 5279 | -7/Data Miner | Entered Proximity Caves 5315 | -6/Proximity Caves | Spotted B-75 Beast 5318 | -6/Proximity Caves | Ambushed by research squad 5364 | -6/Proximity Caves | Lost 3 parts (1p1u1w) 5482 | -6/Proximity Caves | Lost 5 parts (1n2u2w) 5570 | -6/Proximity Caves | Attracted the attention of an 0b10 checkpoint 5817 | -6/Proximity Caves | Build established: Hacker-Gunner 5821 | -6/Proximity Caves | Discovered exit to Factory (range 15) 5866 | -6/Proximity Caves | Entered Factory 5866 | -6/Factory | Evolved 2 slots: Propulsion x1, Utility x1 6051 | -6/Factory | Repaired Broken Arm. Wheel 6084 | -6/Factory | Repaired Arm. Wheel 6236 | -6/Factory | Assembled infested ambush trap array 6283 | -6/Factory | Destroyed 9 combat bots 6328 | -6/Factory | Incoming investigation squad redirected 6622 | -6/Factory | Lost 5 parts (2n1u2w) 6636 | -6/Factory | Identified exit to Factory 6716 | -6/Factory | Discovered new exit (range 6) 6722 | -6/Factory | Entered Lower Caves 6878 | -6/Lower Caves | Spotted B-75 Beast 7256 | -6/Lower Caves | Build established: Hacker-Mutant 7281 | -6/Lower Caves | A Derelict revealed a hidden shortcut to a safe place 7291 | -6/Lower Caves | Entered Zion 7315 | -6/Zion | Received a visual enhancement algorithm 7316 | -6/Zion | Ran a visual enhancement algorithm 7356 | -6/Zion | Discovered new exit (range 19) 7480 | -6/Zion | System corruption cleaned by Quarantine Array 7565 | -6/Zion | Given A8's code to call for help 7581 | -6/Zion | Build established: Mutant 7629 | -6/Zion | Learned Factory garrison access intel 7768 | -6/Zion | Rebuked by Imprinter 7917 | -6/Zion | Found Prototype Special Weapon 7917 | -6/Zion | Identified RU-N14's Throwing Claymores 7944 | -6/Zion | Given the Hacking Drone Bay 7949 | -6/Zion | Found Prototype Device 8121 | -6/Zion | Learned location of Quarantine (-3) 8127 | -6/Zion | Build established: Derelict-Mutant 8335 | -6/Zion | Identified exit to Deep Caves 8442 | -6/Zion | Found RU-N14's Throwing Claymores 8600 | -6/Zion | Entered Proximity Caves 8652 | -5/Proximity Caves | Attracted the attention of an 0b10 outpost 8701 | -5/Proximity Caves | Destroyed 7 combat bots 8823 | -5/Proximity Caves | Received a Behemoth hack from an annoying Tinkerer 8901 | -5/Proximity Caves | Learned location of Armory (-3) 9128 | -5/Proximity Caves | Acquired the password to a Derelict Tinkerer's latest research 9131 | -5/Proximity Caves | Ran a visual enhancement algorithm 9135 | -5/Proximity Caves | Found Prototype Special Weapon 9155 | -5/Proximity Caves | Build established: Mutant 9163 | -5/Proximity Caves | Spotted B-75 Beast 9166 | -5/Proximity Caves | Identified Molecular Deconstructor 9266 | -5/Proximity Caves | Destroyed B-75 Beast 9332 | -5/Proximity Caves | Discovered exit to Factory (range 8) 9371 | -5/Proximity Caves | Entered Factory 9371 | -5/Factory | Evolved 2 slots: Power x1, Utility x1 9372 | -5/Factory | Loaded intel: 4 garrison access locations 9530 | -5/Factory | Fabricated Variable Charge Gun? 10269 | -5/Factory | Discovered new exit (range 9) 10373 | -5/Factory | Identified Hacking Drone Bay 10449 | -5/Factory | Found Prototype Launcher 10449 | -5/Factory | Identified Mni. Smartbomb Launcher 10454 | -5/Factory | Found Mni. Smartbomb Launcher 10618 | -5/Factory | Discovered new exit (range 14) 10838 | -5/Factory | Identified exit to Factory 11020 | -5/Factory | Identified exit to Upper Caves 11114 | -5/Factory | Discovered exit to Factory (range 16) 11401 | -5/Factory | Central database locked down 11691 | -5/Factory | Discovered exit to Factory (range 20) 12186 | -5/Factory | Destroyed 10 combat bots 12549 | -5/Factory | Entered Upper Caves 12666 | -5/Upper Caves | Attracted the attention of an 0b10 outpost 12732 | -5/Upper Caves | Destroyed 8 combat bots 12868 | -5/Upper Caves | Attracted the attention of an 0b10 checkpoint 12989 | -5/Upper Caves | Discovered new exit (range 3) 13163 | -5/Upper Caves | Build established: Hacker-Tank 13221 | -5/Upper Caves | Ambushed by wild Derelicts 13874 | -5/Upper Caves | Entered another Upper Caves area 13895 | -5/Upper Caves | Build established: Hacker-Skirmisher 13913 | -5/Upper Caves | Spotted B-75 Beast 13929 | -5/Upper Caves | Destroyed B-75 Beast 14053 | -5/Upper Caves | Discovered new exit (range 22) 14263 | -5/Upper Caves | Attracted the attention of an 0b10 outpost 14312 | -5/Upper Caves | Destroyed 9 combat bots 14471 | -5/Upper Caves | Entered Warlord 14503 | -5/Warlord | Discovered new exit (range 9) 14832 | -5/Warlord | Met Warlord 14857 | -5/Warlord | Warlord's base attacked by MAIN.C 15207 | -5/Warlord | Warlord forces counterattacked 15307 | -5/Warlord | Spotted Striker 15326 | -5/Warlord | Build established: Scavenger-Skirmisher 15360 | -5/Warlord | Spotted Executioner 15373 | -5/Warlord | Destroyed 7 combat bots 15392 | -5/Warlord | Destroyed Executioner 15428 | -5/Warlord | Lost 5 parts (1p1n1u2w) 15470 | -5/Warlord | Lost 31 allies 15510 | -5/Warlord | Spotted Executioner 15532 | -5/Warlord | Warlord base infiltrated, sounded retreat 15715 | -5/Warlord | Spotted Executioner 15715 | -5/Warlord | Spotted Striker 15741 | -5/Warlord | Destroyed Executioner 15744 | -5/Warlord | Destroyed Striker 15831 | -5/Warlord | Spotted Striker 15858 | -5/Warlord | Released all parts (9) 15859 | -5/Warlord | Core integrity fell below 50% 15870 | -5/Warlord | Spotted Striker 15877 | -5/Warlord | Spotted Executioner 15883 | -5/Warlord | Entered Proximity Caves 15885 | -4/Proximity Caves | Core integrity fell below 20% 15887 | -4/Proximity Caves | Lost 12 parts (1p4n3u4w) 15890 | -4/Proximity Caves | Spotter reported a threat 15941 | -4/Proximity Caves | Attracted the attention of an 0b10 outpost 15945 | -4/Proximity Caves | Destroyed by S-27 Virus with Autogun Last Messages --------------- 15858_ P-70 Sage destroyed. 15859_ Slammed into Striker. 15861_ Acquired 45 matter. 15861_ Slammed into G-50 Soldier. 15867_ Knocked back. 15877_ L-41 Fighter knocked back. LOCATION=UNKNOWN GOAL=ESCAPE 15884_ M-30 Cleanser extracts Dirty Bomb Trap. 15888_ Slammed into N-01 Spotter. 15888_ N-01 Spotter is scanning... 15889_ System corrupted: Matter fused (-9). 15889_ Acquired 3 matter. 15890_ N-01 Spotter sends a signal. 15890_ ALERT: Unidentified potential threat approaching Complex 0b10. 15892_ M-30 Cleanser extracts Fire Trap. 15916_ System corrupted: Component data lost. 15941_ Y-72 Warden: "DETECTED UNIDENTIFIED DERELICT." 15941_ G-67 Veteran springs to life. 15945_ Y-72 Warden: "REQUESTING BACKUP." Map ----- +----------------------------------------------------+ | ### #??## #?????????????????????????????? | | # ##?# #??# ##????????????????????????????? | | ## #??# #??# #????????????????????????????? | | ?## #??# #??# #????????????????????????????? | | ??## #### #### ##???????????????????????????? | | ???#### ##??????????????????????????? | | ?????# #??????????????????????????? | | ?##??# ### #??????????????????????????? | | # ##?# #### #??????????????????????????? | | ### ## #??????????????????????????? | | # # #??????????????????????????? | | ###### ######### #??????????????????????????? | | ?????# #???????# #??????????????????????????? | | ###### #???????# ###??????????????????????????? | | # #?###???# ##????????????????????????????? | | # #?? #??#######??????????????????????????? | | #??? ##????# ??????????????????????????? | | #??? #????# ########???????????????????? | | #???? ##???# #""""""#???????????????????? | | ##??## ##??# # b"#???????????????????? | | ## #### # #??# g## "#???????????????????? | | #### # # ## ##### #l"#???????????????????? | | #??#### # #? Y "#???????????????????? | | ??????## # #? "#???????????????????? | | ???????## ### ### ### #?????????????????? | | ????????# ## #?# s @ #?????????????????? | | ????????## #### ##?############?????????????????? | | ?????????####??###???????????????????????????????? | | ?????????????????????????????????????????????????? | | ?????????????????????????????????????????????????? | | ?????????????????????????????????????????????????? | | ?????????????????????????????????????????????????? | | ?????????????????????????????????????????????????? | | ?????????????????????????????????????????????????? | | ?????????????????????????????????????????????????? | | ?????????????????????????????????????????????????? | | ?????????????????????????????????????????????????? | | ?????????????????????????????????????????????????? | | ?????????????????????????????????????????????????? | | ?????????????????????????????????????????????????? | | ?????????????????????????????????????????????????? | | ?????????????????????????????????????????????????? | | ?????????????????????????????????????????????????? | | | | | | | | | | | | | | | +----------------------------------------------------+ Best States ------------- Heat Dissipation 78 Energy Generation 37 Energy Capacity 540 Matter Stores 500 Matter Capacity 500 Sight Range 22 Terrain Scan Range 16 Terrain Scan Density 10 Armor Coverage 750 Resistance: KI 20 Resistance: TH 20 Resistance: EX 20 Resistance: EM 20 Resistance: I 20 Resistance: S 20 Resistance: P 20 Melee Speed Boost 20 Evasion (%) 55 Targeting Accuracy 8 Melee Accuracy 6 Core Analysis 9 Offensive Hacking 24 Item Schematics ----------------- Combat Drone Bay | -7/Data Miner | Free Lgt. Regenerative Plating | -7/Data Miner | Free Cld. Cesium-ion Thruster | -7/Data Miner | Free Thermal Defense Suite | -7/Data Miner | Free Cld. Plasma Cannon | -7/Data Miner | Free Arm. Medium Treads | -7/Data Miner | Free Mni. Drone Bay | -7/Data Miner | Free Tesla Rifle | -7/Data Miner | Free Wave Gun | -6/Zion | Archive Angular Momentum Engine | -6/Zion | Archive Imp. Particle Charger | -6/Zion | Archive Hvy. Phase Cannon | -6/Zion | Archive Lgt. Antimatter Reactor | -6/Zion | Archive Imp. Launcher Guidance Computer | -6/Zion | Archive Variable Charge Gun | -6/Zion | Archive Hvy. Machine Gun | -6/Zion | Archive Adv. Recoil Stabilizer | -6/Zion | Archive Adv. Signal Interpreter | -6/Zion | Archive Field Propulsion Drive | -6/Zion | Archive Thermal Shield | -6/Zion | Archive HERF Cannon | -6/Zion | Archive Shield Leg | -5/Factory | Hacked Robot Schematics ------------------ W-25 Informer | -7/Data Miner | Free Y-54 Guardian | -7/Data Miner | Free M-22 Extractor | -7/Data Miner | Free B-48 Gladiator | -7/Data Miner | Free C-35 Carver | -7/Data Miner | Free S-27 Virus | -7/Data Miner | Free L-41 Fighter | -6/Zion | Archive R-10 Processor | -6/Zion | Archive R-06 Scavenger | -6/Zion | Archive Fabricated ------------ Variable Charge Gun | x2 | -5/Factory | Preloaded Repaired ---------- Imp. Assault Rifle | 17% | -7/Factory Arm. Wheel | 67% | -7/Factory Imp. Assault Rifle | 20% | -7/Factory Imp. Assault Rifle | 58% | -7/Factory Arm. Wheel | 36% | -6/Factory | Broken Arm. Wheel | 3% | -6/Factory Studied --------- Lgt. Assault Rifle | -9/Materials | Hacked Aluminum Leg | -9/Materials | Hacked Wheel | -9/Materials | Hacked Imp. Ion Engine | -9/Materials | Hacked Carbon-fiber Leg | -5/Factory | Hacked Gauss Cannon | -5/Factory | Hacked Alien Tech Used ----------------- None Achievements -------------- Plot Armor Protector Thread The Needle Around The Corner Challenges ------------ None Game ------ Seed ThunderSurgeShielding Manual? 0 Play Time 03:49:26 Cumulative 184.0 hours Start 2026.06.25 @ 13:10:08 End 2026.07.02 @ 22:06:35 Sessions 9 Manual Loads 0 Difficulty Adventurer Special Mode None Game No. 75 Rogue 0 Adventurer 71 Explorer 4 Win Type - Total 5 Types 4/0/0/1/0/0/0/0/0/0 Lore% 45 Gallery% 50 Achievement% 43 Wizard Run 0 Options --------- Layout 0 ASCII 0 Keyboard 0 Movement Numpad Keybinds 0 Fullscreen 2 Font 36/Smallcaps Map View 76x50 Zoom Use 0% Tactical HUD 1 Map Filters NONE Filters NONE Steam 1 RUN: 80379352-c80f-4ad5-a4e7-7deff3c1e70c